fUST/lending_fUST_20260104
["ID","MTS","AMOUNT","RATE_DAILY","PERIOD"]
[400388325,1767489885587,155.0,0.0001,2]
[400388327,1767490044928,416.09203621,0.00011681,2]
[400388330,1767490091395,2114.43970178,0.0001,2]
[400388332,1767490112029,255.01226387,0.00024581,120]
[400388381,1767490232382,-599.0,0.00012646,2]
[400388382,1767490232393,-192.09744063,0.00012646,2]
[400388383,1767490232476,-252.24400831,0.00012646,2]
[400388384,1767490232486,-1171.40777273,0.00012899,2]
[400388385,1767490232497,-28.59222727,0.00012899,2]
[400388386,1767490232507,-536.05138311,0.000129,2]
[400388387,1767490232744,-4568.57389103,0.000129,2]
[400388388,1767490232753,-300.0,0.00012964,2]
[400388389,1767490232763,-500.0,0.00012965,2]
[400388390,1767490232772,-273.84543393,0.00012965,2]
[400388391,1767490232785,-2325.78309487,0.00013061,2]
[400388412,1767490238277,-855.08957763,0.00013061,2]
[400388414,1767490238288,-2905.1357013,0.00013061,2]
[400388416,1767490238299,-2480.95502995,0.0001355,2]
[400388418,1767490238310,-1231.477302,0.00013699,2]
[400388420,1767490238320,-935.03433401,0.0001393,2]
[400388422,1767490238331,-173.83298651,0.00013966,2]
[400388424,1767490238342,-500.0,0.00013966,2]
[400388426,1767490238353,-500.0,0.00013966,2]
[400388428,1767490238363,-500.0,0.00013966,2]
[400388430,1767490238373,-198.23541368,0.00013966,2]
[400388432,1767490238383,-500.0,0.00013966,2]
[400388435,1767490238398,-500.0,0.00013966,2]
[400388437,1767490238408,-377.77356766,0.00013966,2]
[400388439,1767490238420,-402.15664075,0.00013966,2]
[400388441,1767490238430,-1580.50116127,0.00013967,2]
[400388443,1767490238440,-14607.19842623,0.00013967,2]
[400388445,1767490238453,-12667.50537527,0.00013967,2]
[400388447,1767490238466,-300.0,0.00013971,2]
[400388448,1767490238476,-300.0,0.00013971,2]
[400388449,1767490238487,-300.0,0.00013971,2]
[400388450,1767490238498,-300.0,0.00013971,2]
[400388451,1767490238508,-300.0,0.00013971,2]
[400388452,1767490238519,-300.0,0.00013971,2]
[400388453,1767490238530,-300.0,0.00013971,2]
[400388454,1767490238540,-300.0,0.00013971,2]
[400388455,1767490238550,-300.0,0.00013971,2]
[400388456,1767490238561,-300.0,0.00013971,2]
[400388457,1767490238571,-300.0,0.00013971,2]
[400388458,1767490238582,-300.0,0.00013971,2]
[400388459,1767490238591,-300.0,0.00013971,2]
[400388460,1767490238601,-300.0,0.00013971,2]
[400388461,1767490238611,-300.0,0.00013971,2]
[400388462,1767490238623,-600.0,0.00013971,2]
[400388463,1767490238633,-151.0,0.00013971,2]
[400388464,1767490238776,-151.0,0.00013971,2]
[400388465,1767490238790,-216.25429,0.00013971,2]
[400388466,1767490238801,-151.0,0.00013971,2]
[400388467,1767490238811,-274.460776,0.00013971,2]
[400388468,1767490238821,-1680.0,0.00014189,2]
[400388469,1767490238831,-420.0,0.00014218,2]
[400388470,1767490238842,-500.0,0.00014377,2]
[400388471,1767490238852,-358.2628213,0.00014377,2]
[400388472,1767490238862,-500.0,0.00014377,2]
[400388474,1767490238878,-500.0,0.00014377,2]
[400388475,1767490238889,-500.0,0.00014377,2]
[400388476,1767490238901,-500.0,0.00014377,2]
[400388477,1767490238911,-500.0,0.00014377,2]
[400388478,1767490238922,-500.0,0.00014377,2]
[400388479,1767490238932,-500.0,0.00014377,2]
[400388480,1767490238944,-500.0,0.00014377,2]
[400388481,1767490238955,-500.0,0.00014377,2]
[400388482,1767490238965,-500.0,0.00014377,2]
[400388483,1767490238975,-500.0,0.00014377,2]
[400388484,1767490238986,-500.0,0.00014377,2]
[400388485,1767490238995,-365.6746565,0.00014377,2]
[400388486,1767490239006,-500.0,0.00014377,2]
[400388487,1767490239016,-500.0,0.00014377,2]
[400388488,1767490239026,-500.0,0.00014377,2]
[400388489,1767490239036,-500.0,0.00014377,2]
[400388490,1767490239046,-500.0,0.00014377,2]
[400388491,1767490239055,-416.2289205,0.00014377,2]
[400388492,1767490239065,-500.0,0.00014377,2]
[400388493,1767490239075,-2079.35005235,0.00014378,2]
[400388494,1767490239085,-1041.66666667,0.00014437,2]
[400388495,1767490239095,-160.0,0.00014437,2]
[400388496,1767490239105,-151.0,0.00014566,2]
[400388497,1767490239114,-151.0,0.00014566,2]
[400388498,1767490239124,-151.0,0.00014566,2]
[400388499,1767490239134,-524.32290975,0.00014646,2]
[400388500,1767490239143,-500.0,0.00014692,2]
[400388501,1767490239154,-602.04338658,0.00014695,2]
[400388502,1767490239164,-709.7486288,0.0001472,2]
[400388503,1767490239174,-151.0,0.00014736,2]
[400388504,1767490239183,-151.0,0.00014736,2]
[400388505,1767490239194,-151.0,0.00014736,2]
[400388506,1767490239206,-161.991,0.00014795,2]
[400388507,1767490239216,-156.48312023,0.000149,2]
[400388508,1767490239227,-150.391,0.00014957,2]
[400388509,1767490239236,-629.894,0.00014994,2]
[400388510,1767490239246,-2164.463,0.00014994,2]
[400388511,1767490239256,-215.22923923,0.00015,2]
[400388512,1767490239274,-50.77076077,0.00015,2]
[400388513,1767490239283,-288.06979135,0.0001501,2]
[400388514,1767490239295,-2.42635718,0.0001501,2]
[400388515,1767490239305,-341.17027061,0.00015028,2]
[400388516,1767490239317,-4763.4550035,0.00015028,2]
[400388517,1767490239327,-306.767494,0.00015068,2]
[400388518,1767490239337,-158.3663252,0.00015091,2]
[400388519,1767490239347,-381.56991785,0.00015106,2]
[400388520,1767490239359,-220.47346871,0.00015106,2]
[400388521,1767490239369,-720.0,0.00015368,2]
[400388522,1767490239379,-602.04338656,0.00015517,2]
[400388523,1767490239390,-151.0,0.00015585,2]
[400388524,1767490239399,-587.0,0.00015593,2]
[400388525,1767490239410,-2351.0,0.00015608,2]
[400388526,1767490239419,-151.0,0.00015678,2]
[400388527,1767490239429,-151.0,0.00015678,2]
[400388528,1767490239438,-4008.7001047,0.00015678,2]
[400388529,1767490239448,-7902.78303993,0.0001589,2]
[400388530,1767490239462,-2477.74752223,0.0001589,2]
[400388531,1767490239477,-822.42279838,0.0001589,2]
[400388532,1767490239489,-1107.56081372,0.0001589,2]
[400388533,1767490239500,-1049.11911392,0.0001589,2]
[400388534,1767490239512,-890.15205145,0.0001589,2]
[400388535,1767490239525,-281.00478041,0.0001589,2]
[400388551,1767490244357,-441.13816926,0.0001499,2]
[400388552,1767490244400,-2099.0,0.0001499,2]
[400388553,1767490244412,-27475.54294501,0.0001499,2]
[400388554,1767490244424,-26359.08661418,0.0001499,2]
[400388557,1767490246333,-851.78723781,0.0001499,2]
[400388560,1767490246370,-338.71019234,0.0001499,2]
[400388561,1767490246383,-1696.78351844,0.0001499,2]
[400388562,1767490246496,-35654.80395575,0.0001499,2]
[400388717,1767490525194,155.0,0.00030136,120]
[400388811,1767491304891,294.52,0.00030137,120]
[400388812,1767491323754,1005.0,0.00030136,120]
[400388863,1767491432634,-509.82950955,0.00012565,2]
[400388885,1767491438589,-4614.9390663,0.00012565,2]
[400388889,1767491440650,-706.81540758,0.00012565,2]
[400388890,1767491440662,-598.0,0.00012565,2]
[400388891,1767491440672,-425.33946364,0.00012595,2]
[400388892,1767491440682,-154.40831048,0.00012643,2]
[400388893,1767491440691,-1200.0,0.00012662,2]
[400388894,1767491440701,-243.46925439,0.0001268,2]
[400388895,1767491440710,-300.0,0.00012779,2]
[400388896,1767491440720,-152.06077085,0.0001278,2]
[400388897,1767491440729,-150.40721649,0.0001278,2]
[400388898,1767491440739,-150.96533533,0.0001278,2]
[400388899,1767491440748,-150.81694308,0.00012917,2]
[400388900,1767491440757,-159.13724245,0.00012917,2]
[400388901,1767491440767,-152.399633,0.00012917,2]
[400388902,1767491440777,-300.0,0.00012917,2]
[400388903,1767491440786,-300.0,0.00012917,2]
[400388904,1767491440796,-300.0,0.00012917,2]
[400388905,1767491440805,-300.0,0.00012917,2]
[400388906,1767491440814,-300.0,0.00012917,2]
[400388907,1767491440823,-300.0,0.00012917,2]
[400388908,1767491440832,-300.0,0.00012917,2]
[400388909,1767491440842,-300.0,0.00012917,2]
[400388910,1767491440851,-300.0,0.00012917,2]
[400388911,1767491440861,-300.0,0.00012917,2]
[400388912,1767491440870,-300.0,0.00012917,2]
[400388913,1767491440879,-300.0,0.00012917,2]
[400388914,1767491440890,-300.0,0.00012917,2]
[400388915,1767491440899,-300.0,0.00012917,2]
[400388916,1767491440909,-300.0,0.00012917,2]
[400388917,1767491440919,-600.0,0.00012917,2]
[400388918,1767491440929,-153.05519507,0.00013054,2]
[400388919,1767491440939,-151.2254809,0.00013191,2]
[400388920,1767491440949,-243.46925436,0.00013595,2]
[400388921,1767491440959,-150.15437537,0.00013699,2]
[400388922,1767491440969,-500.0,0.00013699,2]
[400388923,1767491440979,-1680.0,0.00013928,2]
[400388924,1767491440989,-420.0,0.00014017,2]
[400388925,1767491440998,-312.87611701,0.00014209,2]
[400388926,1767491441011,-407.12388299,0.00014209,2]
[400388927,1767491441021,-592.18373391,0.00014247,2]
[400388928,1767491441857,155.0,0.0001,2]
[400388943,1767491446581,-407.81626609,0.00014247,2]
[400388944,1767491446596,-2048.08817281,0.00014378,2]
[400388945,1767491446607,-153.08595196,0.00014452,2]
[400388946,1767491446619,-1041.66666667,0.00014453,2]
[400388947,1767491446632,-243.46925436,0.00014509,2]
[400388948,1767491446644,-501.9005671,0.00014595,2]
[400388949,1767491446655,-500.0,0.00014692,2]
[400388950,1767491446667,-180.47551143,0.00014722,2]
[400388953,1767491446679,-151.57175825,0.00014775,2]
[400388954,1767491446700,-153.43625756,0.00014775,2]
[400388957,1767491446717,-371.137415,0.00014783,2]
[400388959,1767491446729,-78.93616219,0.00014783,2]
[400388969,1767491534211,158.6,0.00011072,2]
[400388970,1767491534514,178.42,0.00011468,2]
[400388971,1767491534933,170.6282211,0.00011863,2]
[400388975,1767491726789,189.6177598,0.00030136,120]
[400388976,1767491747733,529.59184616,0.00030136,120]
[400388979,1767491999856,4690.4021107,0.0003013,120]
[400388997,1767492509500,178.63,0.00012069,2]
[400389065,1767492632640,-1200.0,0.00013698,2]
[400389066,1767492632651,-615.0,0.00013698,2]
[400389067,1767492632662,-409.79466303,0.00013699,2]
[400389068,1767492632673,-955.14226153,0.00013699,2]
[400389069,1767492632685,-44.85773847,0.00013699,2]
[400389070,1767492632695,-1169.903436,0.00013699,2]
[400389071,1767492632705,-9.02405127,0.00013699,2]
[400389086,1767492638638,-490.97594873,0.00013699,2]
[400389088,1767492638648,-1000.0,0.00014,2]
[400389090,1767492638658,-158.45112419,0.00014007,2]
[400389099,1767492638744,-141.54887581,0.00014007,2]
[400389101,1767492638754,-255.0,0.00014007,2]
[400389103,1767492638764,-51.84349903,0.00014008,2]
[400389105,1767492638775,-218.27933395,0.00014008,2]
[400389107,1767492638785,-710.45824918,0.00014008,2]
[400389110,1767492638795,-710.45824918,0.00014008,2]
[400389112,1767492638805,-301.69942357,0.00014008,2]
[400389114,1767492638817,-500.0,0.00014008,2]
[400389116,1767492638826,-710.45824918,0.00014008,2]
[400389118,1767492638836,-710.45824918,0.00014008,2]
[400389120,1767492638847,-534.73266468,0.00014008,2]
[400389122,1767492638857,-710.45824918,0.00014008,2]
[400389124,1767492638867,-710.45824918,0.00014008,2]
[400389126,1767492638876,-710.45824918,0.00014008,2]
[400389127,1767492638886,-500.0,0.00014008,2]
[400389129,1767492638896,-710.45824918,0.00014008,2]
[400389131,1767492638905,-710.45824918,0.00014008,2]
[400389144,1767492638915,-710.45824918,0.00014008,2]
[400389147,1767492639051,-710.45824918,0.00014008,2]
[400389149,1767492639061,-710.45824918,0.00014008,2]
[400389151,1767492639072,-710.45824918,0.00014008,2]
[400389153,1767492639081,-710.45824918,0.00014008,2]
[400389155,1767492639091,-710.45824918,0.00014008,2]
[400389157,1767492639100,-710.45824918,0.00014008,2]
[400389159,1767492639110,-710.45824918,0.00014008,2]
[400389161,1767492639119,-710.45824918,0.00014008,2]
[400389163,1767492639129,-710.45824918,0.00014008,2]
[400389165,1767492639138,-710.45824918,0.00014008,2]
[400389167,1767492639149,-11569.72591409,0.00014009,2]
[400389252,1767492640741,-13238.25,0.00014009,2]
[400389253,1767492640795,-839.15574319,0.00014009,2]
[400389264,1767492644732,-5396.0609,0.00014009,2]
[400389266,1767492644744,-795.36139042,0.00014009,2]
[400389267,1767492644786,-18054.79550887,0.00014009,2]
[400389273,1767492646678,-493.33333333,0.00014009,2]
[400389305,1767493713124,200.59539548,0.0003,120]
[400389559,1767493837753,-1252.69300186,0.00013292,2]
[400389561,1767493837764,-609.0,0.00013292,2]
[400389563,1767493837773,-300.0,0.00013527,2]
[400389565,1767493837782,-1185.50508298,0.00013527,2]
[400389928,1767493843829,-14.49491702,0.00013527,2]
[400389930,1767493843839,-1405.61349782,0.00013528,2]
[400389932,1767493843849,-1019.57887118,0.00013528,2]
[400389934,1767493843860,-2317.3176271,0.00013528,2]
[400389936,1767493843870,-541.74337931,0.00013528,2]
[400389942,1767493844010,-2164.80654372,0.00013528,2]
[400389943,1767493844023,-401.59876977,0.00013562,2]
[400389944,1767493844034,-634.09365022,0.00013699,2]
[400389945,1767493844044,-2476.77588984,0.00013837,2]
[400389946,1767493844054,-3836.54973085,0.00013857,2]
[400389947,1767493844063,-162.31283624,0.000139,2]
[400389948,1767493844073,-670.99470409,0.00013907,2]
[400389949,1767493844083,-670.99470409,0.00013907,2]
[400389950,1767493844093,-211.1895965,0.00013907,2]
[400389951,1767493844102,-500.0,0.00013907,2]
[400389952,1767493844112,-670.99470409,0.00013907,2]
[400389953,1767493844122,-670.99470409,0.00013907,2]
[400389954,1767493844131,-670.99470409,0.00013907,2]
[400389955,1767493844141,-670.99470409,0.00013907,2]
[400389956,1767493844151,-574.31286528,0.00013907,2]
[400389957,1767493844161,-670.99470409,0.00013907,2]
[400389958,1767493844171,-670.99470409,0.00013907,2]
[400389959,1767493844180,-670.99470409,0.00013907,2]
[400389960,1767493844190,-670.99470409,0.00013907,2]
[400389961,1767493844200,-670.99470409,0.00013907,2]
[400389962,1767493844209,-670.99470409,0.00013907,2]
[400389963,1767493844219,-670.99470409,0.00013907,2]
[400389964,1767493844228,-670.99470409,0.00013907,2]
[400389965,1767493844238,-670.99470409,0.00013907,2]
[400389966,1767493844247,-670.99470409,0.00013907,2]
[400389967,1767493844257,-80934.92469571,0.00013908,2]
[400389968,1767493844269,-39287.40148753,0.00013908,2]
[400389984,1767493845987,-4576.23854683,0.00013908,2]
[400389988,1767494217909,336.0,0.0003,120]
[400389989,1767494303956,330.00945127,0.00030136,120]
[400389990,1767494326177,260.30153536,0.00030136,120]
[400389998,1767494346329,166.14609314,0.00030136,120]
[400390071,1767495032163,-176.69,0.00012329,2]
[400390072,1767495032173,-430.82500014,0.00012329,2]
[400390073,1767495032185,-452.67499986,0.00012329,2]
[400390074,1767495032194,-594.0,0.00012329,2]
[400390075,1767495032204,-2480.95502995,0.00013546,2]
[400390076,1767495032214,-397.10679437,0.00013674,2]
[400390077,1767495032224,-500.0,0.00013707,2]
[400390078,1767495032235,-500.0,0.00013707,2]
[400390079,1767495032245,-457.15128929,0.00013707,2]
[400390080,1767495032255,-227.1310389,0.00013708,2]
[400390081,1767495032378,-446.85178374,0.00013707,2]
[400390120,1767495038051,-53.14821626,0.00013707,2]
[400390122,1767495038060,-350.0,0.00013707,2]
[400390124,1767495038072,-500.0,0.00013707,2]
[400390126,1767495038082,-500.0,0.00013707,2]
[400390128,1767495038091,-500.0,0.00013707,2]
[400390130,1767495038101,-546.38486595,0.00013707,2]
[400390132,1767495038111,-500.0,0.00013707,2]
[400390134,1767495038121,-267.72302843,0.00013707,2]
[400390135,1767495038132,-500.0,0.00013707,2]
[400390137,1767495038142,-386.13858628,0.00013707,2]
[400390139,1767495038151,-83120.12657141,0.00013708,2]
[400390195,1767495044380,-1000.0,0.00013708,2]
[400390196,1767495044435,-40476.4693129,0.00013708,2]
[400390201,1767495046066,-81817.09007964,0.00013708,2]
[400390202,1767495089811,1000.0,0.0003,120]
[400390203,1767495107214,174.78,0.00010012,2]
[400390204,1767495107605,199.75,0.00010383,2]
[400390205,1767495108028,224.72,0.00010754,2]
[400390206,1767495108448,249.69,0.00011124,2]
[400390237,1767495368573,1000.0,0.0003,120]
[400390282,1767495962629,155.17137899,0.00011985,2]
[400390283,1767495966164,157.45937991,0.00011985,2]
[400390293,1767496150824,2261.54092963,0.00012069,2]
[400390294,1767496150848,2738.45907037,0.00012069,2]
[400390297,1767496185795,207.42077488,0.0002843,120]
[400390313,1767496232240,-395.70465848,0.00012481,2]
[400390314,1767496232250,-23.77014206,0.00012481,2]
[400390315,1767496232262,-462.228,0.00012481,2]
[400390337,1767496238072,-110.00185794,0.00012481,2]
[400390339,1767496238083,-220.80925865,0.00012512,2]
[400390341,1767496238093,-169.18888341,0.00012798,2]
[400390346,1767496238126,-130.81111659,0.00012798,2]
[400390348,1767496238136,-164.0,0.00012798,2]
[400390350,1767496238146,-1200.0,0.00012798,2]
[400390352,1767496238157,-300.0,0.00012799,2]
[400390353,1767496238166,-300.0,0.00012799,2]
[400390356,1767496238176,-300.0,0.00012799,2]
[400390358,1767496238186,-300.0,0.00012799,2]
[400390359,1767496238196,-300.0,0.00012799,2]
[400390361,1767496238206,-300.0,0.00012799,2]
[400390362,1767496238216,-300.0,0.00012799,2]
[400390363,1767496238226,-300.0,0.00012799,2]
[400390364,1767496238235,-300.0,0.00012799,2]
[400390365,1767496238246,-300.0,0.00012799,2]
[400390366,1767496238256,-300.0,0.00012799,2]
[400390367,1767496238266,-300.0,0.00012799,2]
[400390368,1767496238276,-300.0,0.00012799,2]
[400390369,1767496238286,-300.0,0.00012799,2]
[400390370,1767496238295,-300.0,0.00012799,2]
[400390371,1767496238305,-305.3143622,0.00012803,2]
[400390372,1767496238315,-600.0,0.00013054,2]
[400390373,1767496238325,-600.2103909,0.000131,2]
[400390374,1767496238335,-600.2103909,0.000131,2]
[400390375,1767496238345,-777.432876,0.00013178,2]
[400390376,1767496238355,-600.2103909,0.000132,2]
[400390377,1767496238364,-600.2103909,0.00013278,2]
[400390378,1767496238374,-600.2103909,0.00013378,2]
[400390379,1767496238384,-2480.95502995,0.00013451,2]
[400390380,1767496238394,-600.2103909,0.00013478,2]
[400390381,1767496238406,-600.2103909,0.000135,2]
[400390382,1767496238417,-3998.08406975,0.000135,2]
[400390383,1767496238427,-163.39908066,0.00013526,4]
[400390384,1767496238437,-156.25300193,0.00013526,4]
[400390385,1767496238447,-150.96199603,0.00013526,4]
[400390386,1767496238456,-387.83336836,0.00013577,2]
[400390387,1767496238466,-307.13972527,0.00013577,2]
[400390388,1767496238477,-879.9073509,0.00013578,2]
[400390389,1767496238486,-614.2154412,0.00013578,2]
[400390391,1767496238497,-19588.11338849,0.00013599,2]
[400390392,1767496238509,-6298.74026498,0.00013599,2]
[400390393,1767496238525,-3052.1254434,0.00013599,2]
[400390394,1767496238535,-1000.0,0.000136,2]
[400390395,1767496238546,-1000.0,0.000136,3]
[400390396,1767496238556,-600.2103909,0.000136,2]
[400390397,1767496238565,-600.2103909,0.000136,2]
[400390398,1767496238575,-160.0,0.000136,14]
[400390399,1767496238584,-150.43228627,0.00013663,4]
[400390400,1767496238594,-1000.0,0.00013699,2]
[400390401,1767496238603,-1111.408264,0.00013699,2]
[400390402,1767496238613,-577.58234955,0.000137,2]
[400390403,1767496238625,-22.62804135,0.000137,2]
[400390404,1767496238635,-557.89715811,0.000137,2]
[400390405,1767496238646,-42.31323279,0.000137,2]
[400390406,1767496238656,-600.2103909,0.000137,2]
[400390407,1767496238666,-500.0,0.00013775,2]
[400390408,1767496238676,-313.59850102,0.00013775,2]
[400390409,1767496238686,-500.0,0.00013775,2]
[400390410,1767496238696,-500.0,0.00013775,2]
[400390411,1767496238706,-58.05599048,0.00013775,2]
[400390417,1767496240183,-188.22903153,0.00013775,2]
[400390418,1767496240194,-500.0,0.00013775,2]
[400390419,1767496240203,-500.0,0.00013775,2]
[400390420,1767496240212,-118.27462464,0.00013775,2]
[400390421,1767496240224,-381.72537536,0.00013775,2]
[400390422,1767496240234,-500.0,0.00013775,2]
[400390423,1767496240244,-500.0,0.00013775,2]
[400390424,1767496240254,-500.0,0.00013775,2]
[400390425,1767496240263,-500.0,0.00013775,2]
[400390426,1767496240273,-87.94559715,0.00013775,2]
[400390427,1767496240284,-412.05440285,0.00013775,2]
[400390428,1767496240294,-55.87559715,0.00013775,2]
[400390436,1767496244227,-444.12440285,0.00013775,2]
[400390437,1767496244236,-500.0,0.00013775,2]
[400390438,1767496244246,-500.0,0.00013775,2]
[400390439,1767496244256,-500.0,0.00013775,2]
[400390440,1767496244266,-500.0,0.00013775,2]
[400390441,1767496244276,-73.83566187,0.00013775,2]
[400390442,1767496244287,-426.16433813,0.00013775,2]
[400390443,1767496244298,-500.0,0.00013775,2]
[400390444,1767496244307,-500.0,0.00013775,2]
[400390445,1767496244318,-1598.97161198,0.00013775,2]
[400390446,1767496244329,-1281.56982155,0.00013775,2]
[400390447,1767496244341,-317.40179043,0.00013775,2]
[400390448,1767496244351,-1598.97161198,0.00013775,2]
[400390449,1767496244360,-1598.97161198,0.00013775,2]
[400390450,1767496244370,-1598.97161198,0.00013775,2]
[400390451,1767496244379,-1598.97161198,0.00013775,2]
[400390452,1767496244390,-1598.97161198,0.00013775,2]
[400390453,1767496244402,-1598.97161198,0.00013775,2]
[400390454,1767496244412,-4694.1254705,0.00013779,2]
[400390455,1767496244424,-150.7986107,0.000138,4]
[400390456,1767496244435,-160.30068518,0.000138,4]
[400390457,1767496244444,-1000.0,0.000138,4]
[400390458,1767496244454,-600.2103909,0.000138,2]
[400390459,1767496244464,-259.351098,0.00013808,2]
[400390460,1767496244477,-153.95805052,0.00013937,4]
[400390461,1767496244487,-250.0,0.00014,2]
[400390462,1767496244497,-392.95491342,0.00014008,2]
[400390463,1767496244507,-257.84182446,0.00014008,2]
[400390464,1767496244517,-420.0,0.00014038,2]
[400390465,1767496244533,-1680.0,0.00014078,2]
[400390466,1767496244559,-500.0,0.00014184,2]
[400390467,1767496244576,-720.0,0.00014359,2]
[400390468,1767496244596,-356.87022458,0.00014362,2]
[400390469,1767496244616,-2074.44671766,0.00014378,2]
[400390472,1767496244640,-162.31283624,0.0001442,2]
[400390474,1767496244659,-466.93149701,0.00014481,2]
[400390475,1767496244678,-1041.66666667,0.00014485,2]
[400390476,1767496244698,-166.4493644,0.00014509,2]
[400390477,1767496244713,-250.0,0.0001452,2]
[400390478,1767496244731,-250.0,0.0001452,2]
[400390479,1767496244753,-250.0,0.0001452,2]
[400390480,1767496244774,-250.0,0.0001452,2]
[400390481,1767496244789,-250.0,0.0001452,2]
[400390482,1767496244805,-553.64373807,0.0001452,2]
[400390483,1767496244826,-250.0,0.0001452,2]
[400390484,1767496244841,-250.0,0.0001452,2]
[400390485,1767496244860,-250.0,0.0001452,2]
[400390486,1767496244875,-250.0,0.0001452,2]
[400390487,1767496244892,-250.0,0.0001452,2]
[400390488,1767496244908,-250.0,0.0001452,2]
[400390489,1767496244924,-250.0,0.0001452,2]
[400390490,1767496244940,-2266.8188063,0.0001452,2]
[400390491,1767496245430,-407.78862397,0.0001452,2]
[400390492,1767496245442,-628.21137603,0.0001452,2]
[400390514,1767496246130,-264.40334013,0.0001452,2]
[400390518,1767496246236,-501.96799976,0.0001452,2]
[400390519,1767496246295,-28605.41728408,0.0001452,2]
[400390520,1767496246305,-500.0,0.00014692,2]
[400390521,1767496246315,-1010.0,0.000148,5]
[400390522,1767496246324,-2145.0,0.0001483,2]
[400390523,1767496246333,-1369.319,0.0001483,2]
[400390524,1767496246343,-340.49116911,0.00015,2]
[400390526,1767496246352,-474.0,0.00015064,2]
[400390528,1767496246362,-574.12855637,0.00015068,2]
[400390530,1767496246372,-2773.56790519,0.00015068,2]
[400390531,1767496246381,-9359.25682108,0.00015068,2]
[400390532,1767496246392,-454.932072,0.00015068,2]
[400390534,1767496262626,155.0,0.0001,2]
[400390589,1767496760384,162.8,9.697e-05,2]
[400390590,1767496760789,195.36,0.00010084,2]
[400390591,1767496761177,227.92,0.00010472,2]
[400390593,1767496761594,260.48,0.0001086,2]
[400390595,1767496761991,293.04,0.00011248,2]
[400390596,1767496762430,325.6,0.00011636,2]
[400390740,1767497432714,-733.49220828,0.00012612,2]
[400390766,1767497438276,-553.1658229,0.00012612,2]
[400390767,1767497438330,-3713.34196882,0.00012612,2]
[400390768,1767497438340,-598.0,0.00012612,2]
[400390769,1767497438351,-381.45193537,0.00012675,2]
[400390770,1767497438361,-1200.0,0.00012738,2]
[400390771,1767497438371,-3335.62322898,0.00012739,2]
[400390772,1767497438382,-300.0,0.00012999,2]
[400390773,1767497438392,-166.0,0.00012999,2]
[400390774,1767497438403,-300.0,0.00012999,2]
[400390775,1767497438413,-46472.93327293,0.00013,7]
[400390776,1767497438428,-258.25123607,0.00013292,2]
[400390777,1767497438438,-627.74108299,0.00013292,2]
[400390778,1767497438448,-627.74108299,0.00013292,2]
[400390779,1767497438458,-627.74108299,0.00013292,2]
[400390780,1767497438474,-627.74108299,0.00013292,2]
[400390781,1767497438484,-627.74108299,0.00013292,2]
[400390782,1767497438509,-627.74108299,0.00013292,2]
[400390783,1767497438538,-627.74108299,0.00013292,2]
[400390784,1767497438559,-627.74108299,0.00013292,2]
[400390785,1767497438579,-627.74108299,0.00013292,2]
[400390786,1767497438602,-627.74108299,0.00013292,2]
[400390787,1767497438621,-627.74108299,0.00013292,2]
[400390788,1767497438643,-627.74108299,0.00013292,2]
[400390789,1767497438665,-627.74108299,0.00013292,2]
[400390790,1767497438686,-627.74108299,0.00013292,2]
[400390791,1767497438705,-627.74108299,0.00013292,2]
[400390792,1767497438721,-627.74108299,0.00013292,2]
[400390793,1767497438737,-627.74108299,0.00013292,2]
[400390794,1767497438755,-627.74108299,0.00013292,2]
[400390795,1767497438776,-627.74108299,0.00013292,2]
[400390796,1767497438798,-142068.05650857,0.00013293,2]
[400390797,1767497438816,-1200.0,0.00013391,2]
[400390798,1767497438829,-25641.02420515,0.00013393,2]
[400390801,1767497440725,-162.31283624,0.00013291,2]